bitfinex/quotes_BTCUSD_20240712
["timestamp","ask_amount","ask_price","bid_price","bid_amount"]
[1720825062356,0.0774,57968.0,57967.0,0.16543969]
[1720825062736,0.23248342,57968.0,57967.0,0.16543969]
[1720825062944,0.1774,57968.0,57967.0,0.16543969]
[1720825064130,0.0774,57968.0,57967.0,0.16543969]
[1720825065014,0.007,57968.0,57967.0,0.16543969]
[1720825065428,0.007,57968.0,57967.0,0.16850322]
[1720825065850,0.007,57968.0,57967.0,0.16543969]
[1720825068575,0.107,57968.0,57967.0,0.16543969]
[1720825069435,0.28159562,57968.0,57967.0,0.16543969]
[1720825069639,0.107,57968.0,57967.0,0.16543969]
[1720825069870,0.28159562,57968.0,57967.0,0.16543969]
[1720825070697,0.107,57968.0,57967.0,0.16543969]
[1720825070902,0.18176511,57968.0,57967.0,0.16543969]
[1720825071120,0.28176511,57968.0,57967.0,0.16543969]
[1720825071537,0.107,57968.0,57967.0,0.16543969]
[1720825072622,0.007,57968.0,57967.0,0.16543969]
[1720825078216,0.007,57968.0,57967.0,0.16850322]
[1720825078629,0.007,57968.0,57967.0,0.62880145]
[1720825079046,0.16254577,57968.0,57967.0,0.62880145]
[1720825079256,0.007,57968.0,57967.0,0.62880145]
[1720825079508,0.16254577,57968.0,57967.0,0.62880145]
[1720825079729,0.007,57968.0,57967.0,0.57510322]
[1720825079978,0.004,57968.0,57967.0,0.57410322]
[1720825080209,0.02870472,57973.0,57972.0,0.4066]
[1720825080415,0.02870472,57973.0,57972.0,0.4376]
[1720825080619,0.02870472,57973.0,57972.0,0.45401796]
[1720825081866,0.03170472,57973.0,57972.0,0.45401796]
[1720825083774,0.03170472,57973.0,57965.0,0.00306353]
[1720825083775,0.0074,57969.0,57965.0,0.00306353]
[1720825083988,0.0704,57966.0,57958.0,0.2896]
[1720825084222,0.0704,57966.0,57959.0,0.148]
[1720825084223,0.17485083,57961.0,57959.0,0.148]
[1720825084445,0.17485083,57960.0,57959.0,0.148]
[1720825084666,0.0704,57960.0,57959.0,0.148]
[1720825084880,0.0704,57960.0,57955.0,0.0926]
[1720825085088,0.0704,57955.0,57951.0,0.2406]
[1720825085306,0.15541249,57952.0,57950.0,0.08602735]
[1720825085518,0.0704,57952.0,57950.0,0.08602735]
[1720825086149,0.17486108,57956.0,57951.0,0.2896]
[1720825086381,0.1,57960.0,57957.0,0.197]
[1720825086382,0.17486108,57958.0,57957.0,0.197]
[1720825086597,0.1,57958.0,57957.0,0.314]
[1720825086809,0.1,57958.0,57957.0,0.197]
[1720825087698,0.105,57958.0,57957.0,0.197]
[1720825087908,0.105,57958.0,57957.0,0.2896]
[1720825088133,0.109,57958.0,57957.0,0.2896]
[1720825088339,0.009,57958.0,57957.0,0.2896]
[1720825089203,0.009,57958.0,57957.0,0.0926]
[1720825091543,0.009,57958.0,57957.0,0.11026519]
[1720825093581,0.009,57958.0,57957.0,0.01766519]
[1720825093582,0.04647198,57958.0,57957.0,0.01766519]
[1720825093782,0.04647198,57958.0,57957.0,0.11026519]
[1720825093783,0.14647198,57958.0,57957.0,0.11026519]
[1720825093999,0.14647198,57958.0,57957.0,0.01766519]
[1720825094848,0.14647198,57958.0,57957.0,0.11026519]
[1720825095059,0.109,57958.0,57957.0,0.11026519]
[1720825095263,0.009,57958.0,57957.0,0.11026519]
[1720825097899,0.009,57958.0,57957.0,0.01766519]
[1720825098328,0.009,57958.0,57952.0,0.2406]
[1720825098485,0.009,57958.0,57957.0,0.02060939]
[1720825098682,0.10991841,57958.0,57953.0,0.0926]
[1720825098881,0.10991841,57958.0,57952.0,0.0926]
[1720825098882,0.0704,57954.0,57952.0,0.0926]
[1720825099089,0.22563977,57953.0,57952.0,0.0926]
[1720825099309,0.0704,57953.0,57950.0,0.08602735]
[1720825099513,0.15522933,57952.0,57950.0,0.08602735]
[1720825099724,0.15522933,57951.0,57950.0,0.08602735]
[1720825100815,0.15522933,57951.0,57950.0,0.08902735]
[1720825100951,0.15522933,57951.0,57950.0,0.08602735]
[1720825101148,0.15622933,57951.0,57950.0,0.09102735]
[1720825101402,0.18114856,57951.0,57950.0,0.09102735]
[1720825101665,0.18111358,57951.0,57950.0,0.09102735]
[1720825102311,0.18211358,57951.0,57950.0,0.09402735]
[1720825103521,0.02691923,57951.0,57950.0,0.09402735]
[1720825104156,0.09731923,57951.0,57950.0,0.09402735]
[1720825104765,0.09731923,57951.0,57950.0,0.11172734]
[1720825104944,0.25251358,57951.0,57950.0,0.11172734]
[1720825105158,0.25246449,57951.0,57950.0,0.11172734]
[1720825105787,0.25245001,57951.0,57950.0,0.11165141]
[1720825106002,0.09731923,57951.0,57950.0,0.11165141]
[1720825106210,0.0724,57951.0,57950.0,0.11165141]
[1720825106427,0.0724,57951.0,57950.0,0.09395142]
[1720825106661,0.0724,57951.0,57950.0,0.00883707]
[1720825107073,0.0724,57951.0,57950.0,0.02653706]
[1720825107286,0.0714,57951.0,57950.0,0.00383707]
[1720825107490,0.0711688,57951.0,57950.0,0.02153706]
[1720825107699,0.0764,57951.0,57950.0,0.00183707]
[1720825107921,0.0834,57951.0,57950.0,0.00183707]
[1720825110334,0.0704,57951.0,57950.0,0.01953706]
[1720825110570,0.0704,57951.0,57950.0,0.00183707]
[1720825110816,0.0704,57951.0,57950.0,0.01953706]
[1720825112818,0.225419,57951.0,57950.0,0.15923706]
[1720825113049,0.325419,57951.0,57950.0,0.15923706]
[1720825113253,0.1704,57951.0,57950.0,0.15923706]
[1720825115462,0.0704,57951.0,57950.0,0.15923706]
[1720825115662,0.1704,57951.0,57950.0,0.15923706]
[1720825122458,0.32542428,57951.0,57950.0,0.15923706]
[1720825125804,0.1704,57951.0,57950.0,0.15923706]
[1720825126002,0.0704,57951.0,57950.0,0.15923706]
[1720825126205,0.1704,57951.0,57950.0,0.15923706]
[1720825126717,0.1704,57951.0,57950.0,0.24435141]
[1720825127162,0.0704,57951.0,57950.0,0.24435141]
[1720825129212,0.24507447,57951.0,57950.0,0.24435141]
[1720825129407,0.1704,57951.0,57950.0,0.24435141]
[1720825129617,0.34519148,57951.0,57950.0,0.24435141]
[1720825132017,0.1704,57951.0,57950.0,0.24435141]
[1720825132171,0.24521559,57951.0,57950.0,0.24435141]
[1720825132367,0.3452161,57951.0,57950.0,0.24435141]
[1720825134196,0.1704,57951.0,57950.0,0.24435141]
[1720825134420,0.0704,57951.0,57950.0,0.24435141]
[1720825134647,0.1704,57951.0,57950.0,0.24435141]
[1720825135350,0.1,57951.0,57950.0,0.24435141]
[1720825135558,0.1704,57951.0,57950.0,0.24435141]
[1720825135771,0.0704,57951.0,57950.0,0.24435141]
[1720825137094,0.0704,57951.0,57950.0,0.34435141]
[1720825143848,0.22265209,57959.0,57950.0,0.34435141]
[1720825144072,0.425298,57958.0,57956.0,0.08511435]
[1720825144279,0.0704,57957.0,57956.0,0.08511435]
[1720825144491,0.0704,57957.0,57956.0,0.10278451]
[1720825145261,0.0704,57957.0,57956.0,0.01767016]
[1720825145465,0.0704,57957.0,57950.0,0.32665142]
[1720825145663,0.0704,57951.0,57950.0,0.32765142]
[1720825146108,0.0704,57951.0,57950.0,0.32665142]
[1720825146312,0.0704,57951.0,57950.0,0.32565142]
[1720825146656,0.0704,57951.0,57950.0,0.52565142]
[1720825146859,0.0704,57951.0,57950.0,0.32565142]
[1720825147255,0.0704,57951.0,57950.0,0.32665142]
[1720825147256,0.0764,57951.0,57950.0,0.32665142]
[1720825148516,0.0814,57951.0,57950.0,0.32665142]
[1720825148723,0.0814,57951.0,57950.0,0.52665142]
[1720825148877,0.011,57951.0,57950.0,0.73625142]
[1720825149085,0.011,57951.0,57950.0,0.61925142]
[1720825149517,0.011,57951.0,57950.0,0.6399014]
[1720825149666,0.006,57951.0,57950.0,0.6399014]
[1720825149869,0.0704,57954.0,57951.0,0.3417]
[1720825150177,0.0704,57954.0,57952.0,0.11323839]
[1720825150410,0.0704,57954.0,57953.0,0.1387]
[1720825150864,0.0704,57954.0,57953.0,0.15933259]
[1720825151315,0.007,57954.0,57953.0,0.15633259]
[1720825151956,0.014,57954.0,57953.0,0.15733259]
[1720825152952,0.01392089,57954.0,57953.0,0.15733259]
[1720825153164,0.007,57954.0,57953.0,0.15733259]
[1720825153388,0.014,57954.0,57953.0,0.15833259]
[1720825154568,0.014,57954.0,57953.0,0.52632099]
[1720825155026,0.18904908,57954.0,57953.0,0.64332099]
[1720825155270,0.28905081,57954.0,57953.0,0.64332099]
[1720825155486,0.28205081,57954.0,57953.0,0.52532099]
[1720825155692,0.27705081,57954.0,57953.0,0.52432099]
[1720825155898,0.28005081,57954.0,57953.0,0.52432099]
[1720825156139,0.28005081,57954.0,57953.0,0.44893259]
[1720825156344,0.105,57954.0,57953.0,0.44893259]
[1720825156780,0.105,57954.0,57953.0,0.24893259]
[1720825157931,0.005,57954.0,57953.0,0.24893259]
[1720825158160,0.105,57954.0,57953.0,0.24893259]
[1720825158565,0.105,57954.0,57953.0,0.44893259]
[1720825158792,0.105,57954.0,57953.0,0.24893259]
[1720825159147,0.005,57954.0,57953.0,0.24893259]
[1720825159368,0.005,57954.0,57953.0,0.44893259]
[1720825159513,0.005,57954.0,57953.0,0.24893259]
[1720825159718,0.005,57954.0,57953.0,0.44893259]
[1720825160414,0.005,57954.0,57953.0,0.56593259]
[1720825160838,0.005,57954.0,57953.0,0.44893259]
[1720825161247,0.005,57954.0,57953.0,0.64112099]
[1720825161605,0.005,57954.0,57953.0,0.56593259]
[1720825162164,0.17495616,57958.0,57953.0,0.43023259]
[1720825162374,0.17495616,57958.0,57957.0,0.32061435]
[1720825162568,0.17495616,57958.0,57957.0,0.52061435]
[1720825162776,0.17495616,57958.0,57957.0,0.65822374]
[1720825162995,0.2004424,57959.0,57958.0,0.2355]
[1720825163181,0.12548624,57959.0,57958.0,0.5525]
[1720825163351,0.1,57959.0,57958.0,0.5731036]
[1720825163556,0.1,57959.0,57958.0,0.5711036]
[1720825164397,0.1,57960.0,57959.0,0.357]
[1720825164596,0.3700276,57962.0,57961.0,0.2926]
[1720825164869,0.3700276,57962.0,57961.0,0.0926]
[1720825165074,0.09637961,57962.0,57961.0,0.0896]
[1720825165231,0.09507144,57962.0,57961.0,0.1071862]
[1720825165821,0.10807144,57962.0,57961.0,0.1091862]
[1720825166236,0.10807144,57962.0,57961.0,0.3735862]
[1720825166442,0.10807144,57962.0,57961.0,0.1735862]
[1720825166816,0.10807144,57962.0,57961.0,0.2520862]
[1720825167009,0.20807144,57962.0,57961.0,0.2520862]
[1720825167231,0.20807144,57962.0,57961.0,0.4520862]
[1720825168293,0.20807144,57962.0,57961.0,0.51750626]
[1720825168499,0.20807144,57962.0,57961.0,0.4520862]
[1720825172574,0.15168471,57966.0,57962.0,0.0866]
[1720825172837,0.0704,57963.0,57962.0,0.2866]
[1720825173629,0.0704,57963.0,57962.0,0.0866]
[1720825173836,0.0704,57963.0,57962.0,0.2886]
[1720825174511,0.0704,57963.0,57962.0,0.2876]
[1720825174892,0.0764,57963.0,57962.0,0.2886]
[1720825175102,0.0764,57963.0,57962.0,0.2876]
[1720825175298,0.0764,57963.0,57962.0,0.2886]
[1720825175299,0.0794,57963.0,57962.0,0.2886]
[1720825176972,0.0794,57963.0,57962.0,0.002]
[1720825179351,0.30079402,57963.0,57962.0,0.002]
[1720825179568,0.2261576,57963.0,57962.0,0.01964035]
[1720825179772,0.2261576,57963.0,57962.0,0.002]
[1720825179929,0.2261576,57963.0,57962.0,0.01964035]
[1720825180496,0.1874,57963.0,57962.0,0.01964035]
[1720825181124,0.0874,57963.0,57962.0,0.01964035]
[1720825183205,0.1876,57963.0,57962.0,0.00337182]
[1720825183410,0.1876,57963.0,57962.0,0.01939136]
[1720825183411,1.184866,57963.0,57962.0,0.01939136]
[1720825183654,1.340804,57963.0,57953.0,0.082]
[1720825183875,0.0704,57954.0,57953.0,0.082]
[1720825185104,0.0704,57954.0,57953.0,0.083]
[1720825186200,0.0704,57954.0,57953.0,0.084]
[1720825186451,0.0704,57954.0,57953.0,0.083]
[1720825186653,0.0704,57954.0,57953.0,0.087]
[1720825186853,0.0704,57954.0,57953.0,0.086]
[1720825187211,0.0704,57954.0,57953.0,0.09]
[1720825187855,0.10491254,57954.0,57953.0,0.09]
[1720825188468,0.0704,57954.0,57953.0,0.09]
[1720825189633,0.0704,57954.0,57953.0,0.008]
[1720825190258,0.24514164,57954.0,57953.0,0.008]
[1720825190468,0.24514164,57954.0,57950.0,0.33035142]
[1720825190897,0.24914164,57954.0,57951.0,0.01945514]
[1720825192200,0.24614164,57954.0,57951.0,0.01945514]
[1720825192409,0.24514164,57954.0,57951.0,0.01945514]
[1720825192615,0.24814164,57954.0,57951.0,0.01945514]
[1720825192791,0.24614164,57954.0,57951.0,0.01945514]
[1720825193211,0.24814164,57954.0,57951.0,0.01945514]
[1720825193710,0.24914164,57954.0,57951.0,0.01945514]
[1720825194106,0.03491416,57953.0,57951.0,0.01945514]
[1720825195317,0.03691416,57953.0,57951.0,0.01945514]
[1720825195514,0.03691416,57953.0,57951.0,0.02036814]
[1720825195928,0.03891416,57953.0,57951.0,0.02036814]
[1720825197413,0.004,57953.0,57951.0,0.02036814]
[1720825200491,0.004,57953.0,57952.0,0.4269]
[1720825200717,0.004,57953.0,57952.0,0.5439]
[1720825201180,0.15934248,57953.0,57952.0,0.5439]
[1720825201384,0.15934248,57953.0,57952.0,0.2269]
[1720825201841,0.002,57953.0,57952.0,0.5439]
[1720825202044,0.15734387,57953.0,57952.0,0.5439]
[1720825202243,0.002,57953.0,57952.0,0.5439]
[1720825202440,0.002,57953.0,57952.0,0.4269]
[1720825202441,0.004,57953.0,57952.0,0.4269]
[1720825202644,0.004,57953.0,57952.0,0.5439]
[1720825203092,0.15934191,57953.0,57952.0,0.5439]
[1720825203713,0.15934709,57953.0,57952.0,0.5439]
[1720825203912,0.004,57953.0,57952.0,0.5439]
[1720825204117,0.15934709,57953.0,57952.0,0.5439]
[1720825205271,0.004,57953.0,57952.0,0.5439]
[1720825205473,0.15934341,57953.0,57952.0,0.5439]
[1720825205961,0.15934651,57953.0,57952.0,0.5439]
[1720825206790,0.004,57953.0,57952.0,0.5439]
[1720825206967,0.15934651,57953.0,57952.0,0.5439]
[1720825207212,0.004,57953.0,57952.0,0.5439]
[1720825207430,0.004,57953.0,57952.0,0.2269]
[1720825207631,0.004,57953.0,57952.0,0.5439]
[1720825208174,0.004,57953.0,57952.0,0.2269]
[1720825208377,0.004,57953.0,57952.0,0.5439]
[1720825211074,0.004,57953.0,57952.0,0.64217876]
[1720825211298,0.004,57953.0,57952.0,0.5439]
[1720825212422,0.004,57953.0,57952.0,0.28662]
[1720825215463,0.004,57953.0,57952.0,0.42692]
[1720825217958,0.004,57953.0,57952.0,0.44636934]
[1720825227530,0.004,57953.0,57952.0,0.44728234]
[1720825228545,0.00483,57953.0,57952.0,0.44728234]
[1720825230056,0.17569762,57953.0,57952.0,0.02036234]
[1720825230271,0.23673409,57953.0,57952.0,0.02036234]
[1720825230914,0.23673409,57953.0,57952.0,0.000913]
[1720825231531,0.23473409,57953.0,57952.0,0.000913]
[1720825231769,0.33773409,57953.0,57952.0,0.000913]
[1720825231972,0.33573409,57953.0,57952.0,0.000913]
[1720825232645,0.33873409,57953.0,57952.0,0.000913]
[1720825232854,0.33573409,57953.0,57952.0,0.000913]
[1720825233066,1.48401809,57953.0,57952.0,0.000913]
[1720825233280,0.1,57949.0,57937.0,0.08511435]
[1720825233511,0.0704,57938.0,57937.0,0.08511435]
[1720825233722,0.1704,57938.0,57937.0,0.08511435]
[1720825234337,0.34511879,57938.0,57937.0,0.08511435]
[1720825235393,0.537668,57938.0,57937.0,0.08511435]
[1720825235602,0.62320668,57938.0,57937.0,0.08511435]
[1720825236029,0.62320668,57938.0,57928.0,0.000913]
[1720825236235,0.0704,57931.0,57928.0,0.000913]
[1720825237470,0.0704,57931.0,57929.0,0.01958277]
[1720825238283,0.1704,57931.0,57929.0,0.01958277]
[1720825238483,0.04256387,57930.0,57929.0,0.01958277]
[1720825238913,0.14256387,57930.0,57929.0,0.01958277]
[1720825239514,0.1,57930.0,57929.0,0.01958277]
[1720825239994,0.0714,57931.0,57929.0,0.01958277]
[1720825240419,0.001,57930.0,57929.0,0.01958277]
[1720825241078,0.65788,57930.0,57929.0,0.01958277]
[1720825241279,0.85531306,57930.0,57929.0,0.01958277]
[1720825241703,0.62337306,57930.0,57928.0,0.000913]
[1720825241883,0.229061,57929.0,57928.0,0.000913]
[1720825243833,0.230061,57929.0,57928.0,0.000913]
[1720825244248,0.30411292,57929.0,57928.0,0.000913]
[1720825245498,0.231061,57929.0,57928.0,0.000913]
[1720825245715,0.002,57929.0,57928.0,0.000913]
[1720825246150,0.23359,57929.0,57928.0,0.000913]
[1720825246365,0.23359,57929.0,57928.0,0.00084812]
[1720825247512,0.23206,57929.0,57928.0,0.00084812]
[1720825247791,0.325845,57929.0,57928.0,0.00084812]
[1720825248103,0.150144,57929.0,57928.0,0.00084812]
[1720825248303,0.113037,57929.0,57928.0,0.00084812]
[1720825249137,0.113037,57929.0,57928.0,0.10555105]
[1720825250403,0.14393477,57929.0,57928.0,0.10555105]
[1720825251485,0.113037,57929.0,57928.0,0.10555105]
[1720825254875,0.226093,57929.0,57928.0,0.10555105]
[1720825255435,0.002,57929.0,57928.0,0.10555105]
[1720825256239,0.132079,57929.0,57928.0,0.10555105]
[1720825256668,0.002,57929.0,57928.0,0.10555105]
[1720825257549,0.210629,57929.0,57928.0,0.10555105]
[1720825257927,0.002,57929.0,57928.0,0.24795105]
[1720825261443,0.002,57929.0,57928.0,0.44795105]
[1720825261644,0.002,57929.0,57928.0,0.47095105]
[1720825262305,0.002,57929.0,57928.0,0.55757105]
[1720825262507,0.002,57929.0,57928.0,0.47095105]
[1720825264466,0.002,57929.0,57928.0,0.27095105]
[1720825266040,0.002,57929.0,57928.0,0.1628367]
[1720825266764,0.01179407,57929.0,57928.0,0.0204367]
[1720825267483,0.002,57929.0,57928.0,0.0204367]
[1720825275216,0.1477,57929.0,57928.0,0.0204367]
[1720825275448,0.1477,57929.0,57916.0,0.08602735]
[1720825275449,0.1,57928.0,57916.0,0.08602735]
[1720825275680,0.0704,57917.0,57916.0,0.08602735]
[1720825277540,0.0714,57917.0,57916.0,0.09102735]
[1720825278030,0.0714,57917.0,57916.0,0.09202735]
[1720825278486,0.12863772,57917.0,57916.0,0.09102735]
[1720825278707,0.12729012,57918.0,57916.0,0.09102735]
[1720825278933,0.0704,57917.0,57916.0,0.09102735]
[1720825279162,0.0714,57917.0,57916.0,0.09802735]
[1720825279384,0.1,57925.0,57916.0,0.09802735]
[1720825279606,0.0704,57918.0,57916.0,0.09802735]
[1720825279823,0.0704,57918.0,57916.0,0.08602735]
[1720825280039,0.0704,57918.0,57916.0,0.09102735]
[1720825280253,0.0714,57918.0,57916.0,0.09102735]
[1720825280428,0.0704,57918.0,57916.0,0.08602735]
[1720825281096,0.0714,57918.0,57916.0,0.08902735]
[1720825281576,0.0724,57918.0,57916.0,0.09402735]
[1720825283230,0.0724,57918.0,57917.0,0.01802005]
[1720825283729,0.0724,57918.0,57916.0,0.09402735]
[1720825283986,0.0724,57918.0,57917.0,0.01802005]
[1720825284236,0.0704,57918.0,57917.0,0.01802005]
[1720825284631,0.0724,57918.0,57917.0,0.01]
[1720825284863,0.0724,57918.0,57917.0,0.02202005]
[1720825285073,0.0724,57918.0,57917.0,0.004]
[1720825285281,0.0724,57918.0,57917.0,0.02202005]
[1720825285483,0.0724,57918.0,57917.0,0.004]
[1720825285681,0.0724,57918.0,57917.0,0.02202005]
[1720825285892,0.0724,57918.0,57917.0,0.004]
[1720825286112,0.0734,57918.0,57917.0,0.02202005]
[1720825286315,0.0714,57918.0,57917.0,0.004]
[1720825286525,0.0714,57918.0,57917.0,0.02202005]
[1720825286777,0.0724,57918.0,57917.0,0.01]
[1720825287265,0.0724,57918.0,57917.0,0.02802005]
[1720825287507,0.0724,57918.0,57917.0,0.01]
[1720825287718,0.0724,57918.0,57917.0,0.02802005]
[1720825287887,0.0724,57918.0,57917.0,0.01]
[1720825288092,0.0724,57918.0,57917.0,0.02802005]
[1720825288299,0.0724,57918.0,57917.0,0.01]
[1720825288546,0.0724,57918.0,57917.0,0.02802005]
[1720825288749,0.0724,57918.0,57917.0,0.01]
[1720825288949,0.0724,57918.0,57917.0,0.02802005]
[1720825289150,0.0724,57918.0,57917.0,0.01]
[1720825289333,0.0724,57918.0,57917.0,0.02802005]
[1720825289517,0.0724,57918.0,57917.0,0.01]
[1720825289715,0.0724,57918.0,57917.0,0.02802005]
[1720825289897,0.09668306,57918.0,57917.0,0.01]
[1720825290094,0.09668306,57918.0,57917.0,0.02802005]
[1720825292893,0.09668306,57918.0,57917.0,0.02893305]
[1720825298084,0.09668306,57918.0,57917.0,0.17283305]
[1720825298085,0.02628306,57918.0,57917.0,0.17283305]
[1720825299846,0.11081899,57923.0,57917.0,0.17283305]
[1720825300067,0.0704,57921.0,57917.0,0.17283305]
[1720825301099,0.0704,57921.0,57917.0,0.16883305]
[1720825302342,0.0704,57921.0,57917.0,0.16583305]
[1720825302752,0.0704,57921.0,57917.0,0.16783305]
[1720825305112,0.0704,57921.0,57918.0,0.0769]
[1720825305341,0.0704,57921.0,57919.0,0.01838427]
[1720825306923,0.0704,57921.0,57920.0,0.1374]
[1720825307285,0.0704,57921.0,57920.0,0.15577846]
[1720825307716,0.02397479,57923.0,57920.0,0.15577846]
[1720825307920,0.02397479,57923.0,57922.0,0.22251435]
[1720825308125,0.27459331,57924.0,57922.0,0.22251435]
[1720825308242,0.27459331,57924.0,57922.0,0.2408812]
[1720825308460,0.29857296,57924.0,57922.0,0.2408812]
[1720825309294,0.29962603,57924.0,57922.0,0.2408812]
[1720825309498,0.12497965,57924.0,57922.0,0.2408812]
[1720825309900,0.12497965,57924.0,57922.0,0.15576685]
[1720825309901,0.19965988,57924.0,57922.0,0.15576685]
[1720825310267,0.634812,57923.0,57922.0,0.15576685]
[1720825310472,0.80949223,57923.0,57922.0,0.15576685]
[1720825310683,0.62959823,57923.0,57922.0,0.1374]
[1720825311101,0.62959823,57923.0,57918.0,0.1374]
[1720825311388,0.0704,57921.0,57918.0,0.1374]
[1720825311803,0.0704,57921.0,57919.0,0.01838427]
[1720825312358,0.1704,57921.0,57919.0,0.01838427]
[1720825312549,0.34521575,57921.0,57919.0,0.01838427]
[1720825313195,0.34521575,57921.0,57919.0,0.02038427]
[1720825314151,0.34521575,57921.0,57919.0,0.02338427]
[1720825315437,0.17481575,57920.0,57919.0,0.02338427]
[1720825315647,0.27481575,57920.0,57919.0,0.02338427]
[1720825316060,0.27489509,57920.0,57919.0,0.02338427]
[1720825316460,0.27489509,57920.0,57919.0,0.02138427]
[1720825316900,0.27489509,57920.0,57919.0,0.01838427]
[1720825317127,0.27489509,57920.0,57919.0,0.02638427]
[1720825317346,0.1,57920.0,57919.0,0.02638427]
[1720825317543,0.0704,57921.0,57920.0,0.0605]
[1720825317756,0.0704,57921.0,57920.0,0.07887846]
[1720825318382,0.02397965,57924.0,57921.0,0.0763]
[1720825318585,0.0704,57922.0,57921.0,0.0763]
[1720825318782,0.1704,57922.0,57921.0,0.0763]
[1720825319890,0.0704,57922.0,57921.0,0.0763]
[1720825320303,0.0704,57922.0,57921.0,0.0773]
[1720825321539,0.0704,57922.0,57921.0,0.0793]
[1720825324566,0.0704,57922.0,57921.0,0.1445]
[1720825326225,0.07123,57922.0,57921.0,0.1445]
[1720825327394,0.07123,57922.0,57921.0,0.16287266]
[1720825330424,0.09497047,57922.0,57921.0,0.16287266]
[1720825330811,0.15897282,57927.0,57921.0,0.16287266]
[1720825331013,0.174072,57926.0,57925.0,0.22661435]
[1720825331232,0.0704,57926.0,57925.0,0.22661435]
[1720825331432,0.0704,57926.0,57925.0,0.24489795]
[1720825333624,0.0754,57926.0,57925.0,0.24489795]
[1720825333827,0.009,57926.0,57925.0,0.26938775]
[1720825334292,0.009,57926.0,57925.0,0.44489795]
[1720825334511,0.18407531,57926.0,57925.0,0.24489795]
[1720825334724,0.18407531,57926.0,57925.0,0.44489795]
[1720825334957,0.18407531,57926.0,57925.0,0.24489795]
[1720825335164,0.28407531,57926.0,57925.0,0.24489795]
[1720825335628,0.28407429,57926.0,57925.0,0.24489795]
[1720825335826,0.109,57926.0,57925.0,0.24489795]
[1720825337584,0.05826737,57928.0,57925.0,0.24489795]
[1720825337734,0.05826737,57928.0,57926.0,0.1415]
[1720825337938,0.05826737,57928.0,57927.0,0.01868783]
[1720825338170,0.05826737,57928.0,57927.0,0.1415]
[1720825338345,0.05826737,57928.0,57927.0,0.1600545]
[1720825338640,0.00083,57929.0,57927.0,0.0185545]
[1720825338840,0.02482933,57929.0,57928.0,0.1417]
[1720825339061,0.00083,57929.0,57928.0,0.1417]
[1720825339266,0.00083,57929.0,57928.0,0.16024869]
[1720825339911,0.00083,57929.0,57928.0,0.15424869]
[1720825340132,0.00083,57929.0,57928.0,0.14724869]
[1720825340748,0.01583,57929.0,57928.0,0.14924869]
[1720825343653,0.01576037,57929.0,57928.0,0.14924869]
[1720825345294,0.01576037,57929.0,57928.0,0.09764869]
[1720825345452,0.0188239,57929.0,57928.0,0.09764869]
[1720825345859,0.01576037,57929.0,57928.0,0.0791]
[1720825346266,0.01576037,57929.0,57928.0,0.09764869]
[1720825347100,0.01576037,57929.0,57928.0,0.16224869]
[1720825355529,0.01576037,57929.0,57928.0,0.02054869]
[1720825355736,0.0188239,57929.0,57928.0,0.02054869]
[1720825355971,0.91996526,57929.0,57928.0,0.02054869]
[1720825356224,0.91996526,57929.0,57928.0,0.002]
[1720825356448,0.91690173,57929.0,57928.0,0.002]
[1720825356899,1.02952053,57929.0,57928.0,0.002]
[1720825357155,1.04512053,57929.0,57928.0,0.002]
[1720825357395,0.97031817,57929.0,57928.0,0.002]
[1720825357853,0.85769937,57929.0,57928.0,0.002]
[1720825358576,0.85769937,57929.0,57917.0,0.000913]
[1720825358577,0.79681637,57929.0,57917.0,0.000913]
[1720825358827,0.79681637,57929.0,57903.0,0.009097]
[1720825358828,0.1,57904.0,57903.0,0.009097]
[1720825359062,0.1,57904.0,57890.0,0.51068611]
[1720825359063,0.1,57900.0,57890.0,0.51068611]
[1720825359296,0.0704,57893.0,57890.0,0.51068611]
[1720825359523,0.0704,57893.0,57887.0,0.08511435]
[1720825360951,0.0784,57893.0,57892.0,0.010097]
[1720825361198,0.0704,57893.0,57892.0,0.009097]
[1720825361407,0.008,57893.0,57892.0,0.010097]
[1720825362088,0.014,57893.0,57892.0,0.010097]
[1720825362524,0.008,57893.0,57892.0,0.010097]
[1720825362740,0.006,57893.0,57892.0,0.009097]
[1720825365310,0.0704,57895.0,57892.0,0.009097]
[1720825365555,0.005,57893.0,57892.0,0.009097]
[1720825366009,0.0704,57897.0,57892.0,0.009097]
[1720825372520,0.0704,57894.0,57893.0,0.01801923]
[1720825372839,0.0704,57894.0,57892.0,0.009097]
[1720825373037,0.0704,57894.0,57893.0,0.01801923]
[1720825373472,0.0704,57894.0,57892.0,0.009097]
[1720825373689,0.0704,57894.0,57893.0,0.01801923]
[1720825374124,0.0704,57894.0,57893.0,0.09731923]
[1720825375633,0.0704,57894.0,57893.0,0.16191923]
[1720825375878,0.1704,57903.0,57893.0,0.16191923]
[1720825376099,0.02578748,57897.0,57893.0,0.16191923]
[1720825376328,0.0704,57899.0,57893.0,0.16191923]
[1720825377815,0.12585332,57903.0,57893.0,0.16191923]
[1720825378034,0.0704,57899.0,57893.0,0.16191923]
[1720825379089,0.08744,57899.0,57893.0,0.26191923]
[1720825379498,0.0704,57899.0,57893.0,0.26191923]
[1720825380970,0.1,57903.0,57893.0,0.26191923]
[1720825381194,0.0704,57898.0,57893.0,0.26191923]
[1720825384111,0.41606488,57909.0,57893.0,0.26191923]
[1720825384318,0.0704,57898.0,57893.0,0.26191923]
[1720825386645,0.1,57904.0,57893.0,0.26191923]
[1720825386831,0.00303056,57905.0,57893.0,0.26191923]
[1720825386832,0.0704,57901.0,57893.0,0.26191923]
[1720825391187,0.0704,57901.0,57893.0,0.26283223]
[1720825393105,0.00083,57903.0,57894.0,0.08511435]
[1720825393310,0.0704,57902.0,57894.0,0.08511435]
[1720825393548,0.464269,57902.0,57895.0,0.01800761]
[1720825393756,0.1,57901.0,57895.0,0.01800761]
[1720825393957,0.321995,57901.0,57895.0,0.01800761]
[1720825394164,0.01430521,57900.0,57895.0,0.01800761]
[1720825394368,0.01430521,57899.0,57895.0,0.01800761]
[1720825394576,0.01430521,57898.0,57895.0,0.01800761]